bitfinex-derivatives/quotes_SOLF0:USTF0_20250923
["timestamp","ask_amount","ask_price","bid_price","bid_amount"]
[1758592835206,7.25,217.12,217.02,7.57]
[1758592835405,5.61033469,217.09,217.01,47.31]
[1758592836307,1.46823469,217.05,216.99,76.78]
[1758592836909,5.61103469,217.05,216.99,76.78]
[1758592837209,5.61103469,217.05,216.98,7.57]
[1758592837210,1.46823469,217.05,216.98,7.57]
[1758592837511,5.61173469,217.01,216.97,7.57]
[1758592838105,4.1435,217.01,216.97,7.57]
[1758592838310,7.25,217.0,216.89,4.1458]
[1758592838515,4.1439,216.99,216.9,123.81]
[1758592839602,4.1439,216.99,216.9,7.57]
[1758592839804,64.4709,216.96,216.85,348.78]
[1758592840111,64.4763,216.94,216.85,472.63]
[1758592840812,4.1455,216.91,216.85,348.78]
[1758592843512,10.58740914,216.9,216.85,348.78]
[1758592843705,7.25,216.9,216.85,348.78]
[1758592843907,7.25,216.9,216.85,356.35]
[1758592844315,4.1449,216.94,216.85,348.78]
[1758592844513,10.81812181,216.95,216.86,7.57]
[1758592844514,3.34030816,216.93,216.86,7.57]
[1758592844815,5.08810448,216.99,216.86,7.57]
[1758592844816,7.25,216.99,216.86,7.57]
[1758592845009,3.34150837,216.98,216.86,7.57]
[1758592845213,7.25,216.96,216.87,116.16]
[1758592845407,3.34150837,216.95,216.87,116.16]
[1758592845712,3.34150837,216.94,216.87,116.16]
[1758592846018,3.34150837,216.93,216.87,116.16]
[1758592846216,3.34150837,216.92,216.88,7.57]
[1758592846514,3.34552537,216.91,216.88,7.57]
[1758592846711,4.1447,216.95,216.88,7.57]
[1758592846915,4.1451,216.93,216.87,116.14]
[1758592847113,7.25,216.91,216.85,348.78]
[1758592847319,3.34552403,216.9,216.86,116.14]
[1758592847514,3.34552403,216.89,216.87,7.57]
[1758592847713,7.25,216.93,216.86,123.71]
[1758592848013,3.34891907,216.92,216.86,123.71]
[1758592848214,3.34891907,216.91,216.87,7.57]
[1758592848411,3.34891907,216.9,216.87,7.57]
[1758592848712,3.35055982,216.89,216.87,7.57]
[1758592848913,3.35037633,216.88,216.85,464.92]
[1758592849217,4.1455,216.91,216.85,464.92]
[1758592849515,10.60053977,216.9,216.85,464.92]
[1758592849819,3.35053977,216.89,216.85,464.92]
[1758592850007,3.35053977,216.88,216.85,464.92]
[1758592850203,3.35053977,216.87,216.85,464.92]
[1758592850407,7.25,216.9,216.85,472.49]
[1758592850614,3.35041465,216.89,216.86,7.57]
[1758592850819,4.1449,216.94,216.86,7.57]
[1758592851009,3.35023092,216.93,216.86,7.57]
[1758592851313,3.35023092,216.92,216.86,7.57]
[1758592851515,3.35023092,216.91,216.85,472.49]
[1758592851715,3.35023092,216.9,216.85,464.92]
[1758592851911,3.35023092,216.89,216.86,7.57]
[1758592852120,4.1452,216.92,216.86,7.57]
[1758592852430,3.35038835,216.91,216.85,472.49]
[1758592852719,3.35038835,216.9,216.85,464.92]
[1758592852923,11.3948,216.95,216.86,7.57]
[1758592853213,64.462,216.99,216.86,7.57]
[1758592853214,3.3499973,216.94,216.86,7.57]
[1758592853414,4.1443,216.97,216.87,4.1461]
[1758592853620,3.33772637,216.96,216.88,123.73]
[1758592853811,3.33772637,216.95,216.88,123.73]
[1758592854013,3.33772637,216.94,216.88,123.73]
[1758592854311,4.1443,216.97,216.88,7.57]
[1758592854517,7.25,217.03,216.9,7.57]
[1758592854717,3.3379207,217.02,216.9,7.57]
[1758592855024,3.3379207,217.01,216.9,7.57]
[1758592855316,3.3379207,217.0,216.9,7.57]
[1758592855615,3.3379207,216.99,216.92,7.57]
[1758592855919,4.1433,217.02,216.93,116.14]
[1758592856217,3.33791447,217.01,216.93,116.14]
[1758592856419,3.33791447,217.0,216.93,116.14]
[1758592856718,3.33791447,216.99,216.93,120.285]
[1758592856919,4.1429,217.05,216.94,7.57]
[1758592857117,3.33791031,217.04,216.94,7.57]
[1758592857317,3.33791031,217.03,216.95,4.1446]
[1758592857624,3.33791031,217.02,216.96,7.57]
[1758592857824,4.1429,217.05,216.97,116.08]
[1758592858116,3.33806141,217.04,216.97,116.08]
[1758592858314,7.25,217.07,216.98,7.57]
[1758592858620,3.33754828,217.06,216.98,7.57]
[1758592858917,7.25,217.07,216.98,7.57]
[1758592859118,3.33740103,217.06,216.98,7.57]
[1758592859319,4.1422,217.08,216.98,7.57]
[1758592859523,3.33696022,217.07,216.98,7.57]
[1758592859715,3.33696022,217.06,216.98,7.57]
[1758592859920,4.1422,217.08,216.98,7.57]
[1758592860126,3.33658233,217.07,216.99,4.1438]
[1758592860424,11.3917,217.11,217.0,7.57]
[1758592860620,3.335671,217.1,217.0,7.57]
[1758592860918,3.335671,217.09,217.02,7.47]
[1758592861118,7.25,217.11,217.03,116.0]
[1758592861318,3.33435338,217.1,217.03,116.0]
[1758592861519,7.36,217.15,217.04,7.47]
[1758592861724,3.33471429,217.14,217.04,7.47]
[1758592861919,3.33471429,217.13,217.04,7.47]
[1758592862120,7.36,217.19,217.04,7.47]
[1758592862321,4.1406,217.17,217.06,7.47]
[1758592862529,3.33401651,217.16,217.08,7.47]
[1758592862719,7.36,217.19,217.09,115.98]
[1758592863022,3.33400172,217.18,217.09,115.98]
[1758592863222,7.36,217.19,217.09,115.98]
[1758592863524,3.33199336,217.18,217.09,115.98]
[1758592863824,7.36,217.19,217.09,115.98]
[1758592864025,3.33197995,217.18,217.09,115.98]
[1758592864320,7.36,217.19,217.09,115.98]
[1758592864524,3.33044381,217.18,217.09,115.98]
[1758592864722,7.36,217.19,217.09,115.98]
[1758592864920,3.3311854,217.18,217.09,115.98]
[1758592865123,7.36,217.19,217.1,7.47]
[1758592865326,11.4994,217.23,217.1,7.47]
[1758592865530,3.33184067,217.22,217.1,7.47]
[1758592865827,4.1398,217.21,217.12,7.47]
[1758592866025,3.33137334,217.2,217.13,55.62]
[1758592866228,4.1398,217.21,217.13,55.62]
[1758592866528,7.36,217.23,217.14,7.47]
[1758592866729,4.1392,217.24,217.14,7.47]
[1758592867125,11.4986,217.27,217.14,7.47]
[1758592867325,3.32820935,217.26,217.16,7.47]
[1758592867527,11.4986,217.27,217.16,7.47]
[1758592867729,3.32776313,217.26,217.16,7.47]
[1758592867930,11.4986,217.27,217.16,7.47]
[1758592868228,3.32775622,217.26,217.16,7.47]
[1758592868430,11.4986,217.27,217.16,7.47]
[1758592868928,3.32491307,217.26,217.16,7.47]
[1758592869227,4.138,217.3,217.17,7.47]
[1758592869528,3.32261151,217.29,217.17,7.47]
[1758592869718,4.138,217.3,217.17,7.47]
[1758592869918,7.36,217.32,217.19,7.47]
[1758592870129,3.32272781,217.31,217.19,7.47]
[1758592870333,7.36,217.32,217.19,7.47]
[1758592870527,7.45743086,217.31,217.2,4.1398]
[1758592870728,7.36,217.32,217.21,7.47]
[1758592870918,64.3548,217.35,217.23,7.47]
[1758592871118,3.31889342,217.34,217.24,88.22]
[1758592871327,3.31889342,217.33,217.24,88.22]
[1758592871629,3.31889342,217.32,217.23,7.47]
[1758592871830,7.36,217.36,217.25,7.47]
[1758592872032,3.31608751,217.35,217.26,115.8]
[1758592872221,7.36,217.36,217.26,115.8]
[1758592873031,7.36,217.36,217.27,7.47]
[1758592873332,64.3434,217.39,217.27,7.47]
[1758592873631,3.3090065,217.38,217.27,7.47]
[1758592873824,4.1369,217.36,217.27,7.47]
[1758592874020,7.36,217.4,217.27,4.1385]
[1758592874226,7.36,217.4,217.28,7.47]
[1758592874433,4.1353,217.44,217.29,7.47]
[1758592874633,3.30542817,217.43,217.3,7.47]
[1758592874830,11.4953,217.44,217.31,96.62]
[1758592875035,11.4953,217.44,217.32,7.47]
[1758592875532,64.3459,217.38,217.24,7.47]
[1758592875728,7.36,217.37,217.24,123.33]
[1758592876427,7.36,217.37,217.24,7.47]
[1758592876632,11.4968,217.37,217.25,115.96]
[1758592876826,11.4968,217.37,217.26,7.47]
[1758592877024,7.36,217.37,217.26,7.47]
[1758592877225,7.36,217.42,217.27,7.47]
[1758592878427,7.33,217.4,217.27,7.47]
[1758592878632,7.33,217.4,217.28,115.94]
[1758592878933,4.1363,217.39,217.28,115.94]
[1758592879327,7.33,217.4,217.29,7.4]
[1758592880531,7.33,217.4,217.3,111.12]
[1758592880732,7.33,217.4,217.29,123.26]
[1758592881133,7.33,217.4,217.29,7.4]
[1758592881738,4.1364,217.39,217.29,7.4]
[1758592883236,4.1368,217.37,217.29,7.4]
[1758592884935,11.4661,217.4,217.29,7.4]
[1758592885737,64.3465,217.38,217.29,7.4]
[1758592885936,7.33,217.34,217.22,13.54]
[1758592886136,7.33,217.34,217.23,7.4]
[1758592886937,4.1377,217.32,217.23,7.4]
[1758592887339,4.1377,217.32,217.23,87.64]
[1758592888646,4.1377,217.32,217.23,7.4]
[1758592889047,4.1381,217.3,217.23,7.4]
[1758592889248,64.3699,217.3,217.23,7.4]
[1758592889549,64.3699,217.3,217.19,59.76]
[1758592890350,4.1384,217.28,217.19,59.76]
[1758592890849,4.1388,217.26,217.19,7.4]
[1758592891240,7.62,217.28,217.19,7.4]
[1758592892342,4.1391,217.25,217.19,7.4]
[1758592893246,4.1394,217.23,217.15,355.36]
[1758592893551,72.0103,217.23,217.15,348.2]
[1758592894543,64.3729,217.29,217.15,348.2]
[1758592894544,64.3759,217.28,217.15,348.2]
[1758592894747,3.28545548,217.27,217.16,7.16]
[1758592895042,7.62,217.28,217.16,7.16]
[1758592895243,4.1389,217.26,217.16,7.16]
[1758592896145,4.1392,217.24,217.16,7.16]
[1758592896344,4.1392,217.24,217.17,115.64]
[1758592897344,7.62,217.25,217.16,7.16]
[1758592897546,4.1396,217.22,217.17,122.76]
[1758592898646,7.62,217.21,217.15,348.2]
[1758592898851,3.29985166,217.2,217.16,7.16]
[1758592899051,7.62,217.23,217.15,348.2]
[1758592899253,3.30058245,217.22,217.15,348.2]
[1758592899446,3.30058245,217.21,217.15,348.2]
[1758592899647,3.30058245,217.2,217.15,348.2]
[1758592899840,7.62,217.26,217.16,7.16]
[1758592900050,7.62,217.24,217.16,7.16]
[1758592900250,3.30420311,217.23,217.16,7.16]
[1758592900646,4.1397,217.22,217.16,7.16]
[1758592900852,3.30420311,217.21,217.15,348.2]
[1758592901049,7.62,217.26,217.16,7.16]
[1758592901249,3.30798312,217.25,217.16,7.16]
[1758592901449,3.30798312,217.24,217.16,7.16]
[1758592901653,3.30798312,217.23,217.16,7.16]
[1758592901853,3.30798312,217.22,217.16,7.16]
[1758592902049,3.30798312,217.21,217.16,7.16]
[1758592902248,4.139,217.25,217.16,7.16]
[1758592902451,3.30254719,217.24,217.16,7.16]
[1758592902660,3.30254719,217.23,217.16,7.16]
[1758592902849,12.70810448,217.31,217.16,7.16]
[1758592903048,3.30261489,217.3,217.16,7.16]
[1758592903245,7.44081489,217.29,217.16,4.1405]
[1758592903542,3.30261489,217.28,217.17,7.16]
[1758592903746,7.44121489,217.27,217.17,7.16]
[1758592903955,3.30261489,217.26,217.17,7.16]
[1758592904154,3.30261489,217.26,217.18,115.62]
[1758592904344,3.30261489,217.25,217.18,115.62]
[1758592904549,3.30261489,217.24,217.18,115.62]
[1758592904749,7.62,217.28,217.18,115.62]
[1758592904750,3.30261489,217.23,217.19,7.16]
[1758592904951,3.30261489,217.22,217.18,115.62]
[1758592905152,7.62,217.28,217.19,7.16]
[1758592905455,3.30964771,217.27,217.19,7.16]
[1758592905753,3.30964771,217.26,217.19,7.16]
[1758592905956,3.30964771,217.25,217.19,7.16]
[1758592906251,12.70810448,217.33,217.19,7.16]
[1758592906445,7.44811751,217.32,217.21,4.1397]
[1758592906648,3.31031751,217.31,217.22,7.16]
[1758592906852,3.31031751,217.3,217.23,115.56]
[1758592907052,3.31031751,217.29,217.23,115.56]
[1758592907247,3.31031751,217.28,217.23,115.56]
[1758592907455,3.31031751,217.27,217.24,7.16]
[1758592907665,3.31031751,217.26,217.23,115.56]
[1758592907860,3.31031751,217.25,217.23,122.72]
[1758592908062,5.08810448,217.33,217.23,122.72]
[1758592908367,16.02409541,217.32,217.24,115.5]
[1758592908666,3.31599093,217.31,217.24,115.5]
[1758592908870,3.31599093,217.3,217.24,115.5]
[1758592909063,3.31599093,217.29,217.24,122.66]
[1758592909370,3.31599093,217.28,217.25,7.16]
[1758592909567,7.62,217.26,217.23,115.52]
[1758592909768,3.31599093,217.25,217.23,115.52]
[1758592910665,3.31599093,217.24,217.18,7.16]
[1758592910867,3.31599093,217.23,217.19,115.48]
[1758592911160,4.1386,217.27,217.2,7.16]
[1758592911373,3.31985484,217.26,217.2,7.16]
[1758592911672,3.31985484,217.25,217.19,115.48]
[1758592911873,3.31985484,217.24,217.2,7.16]
[1758592912075,3.31985484,217.23,217.16,7.16]
[1758592912268,4.139,217.25,217.21,115.44]
[1758592912469,64.3727,217.29,217.16,7.16]
[1758592912470,3.32106132,217.24,217.16,7.16]
[1758592912672,3.32106132,217.23,217.2,115.44]
[1758592912970,3.32106132,217.22,217.2,115.44]
[1758592913170,3.32106132,217.21,217.2,115.44]
[1758592913367,7.62,217.26,217.2,115.44]
[1758592913568,4.1397,217.21,217.18,115.4]
[1758592914069,4.1397,217.21,217.19,7.16]
[1758592914271,4.1392,217.24,217.19,7.16]
[1758592914472,3.23081571,217.23,217.19,7.16]
[1758592914668,4.1392,217.24,217.19,7.16]
[1758592914864,3.23081571,217.23,217.19,7.16]
[1758592915069,4.1392,217.24,217.19,7.16]
[1758592915265,11.7592,217.24,217.19,7.16]
[1758592916272,11.7592,217.24,217.18,115.4]
[1758592916467,4.1392,217.24,217.18,122.56]
[1758592917578,4.1395,217.23,217.19,7.16]
[1758592918174,7.62,217.22,217.14,7.16]
[1758592918376,7.62,217.22,217.14,55.58]
[1758592918577,4.1407,217.16,217.14,7.16]
[1758592919077,4.1411,217.14,217.04,7.16]
[1758592919379,4.1411,217.14,217.05,115.34]
[1758592919571,7.62,217.16,217.05,4.1427]
[1758592919773,7.62,217.16,217.07,7.16]
[1758592920573,7.62,217.16,217.08,115.32]
[1758592921378,11.7608,217.16,217.08,115.32]
[1758592921581,70.39579795,217.26,217.09,7.73]
[1758592921582,7.25,217.22,217.09,7.73]
[1758592921776,3.22903601,217.21,217.09,7.73]
[1758592921977,7.25,217.19,217.09,7.73]
[1758592922575,4.1407,217.16,217.09,7.73]
[1758592922778,7.25,217.14,217.06,115.44]
[1758592923179,4.1409,217.15,217.07,123.15]
[1758592923380,7.25,217.15,217.07,123.15]
[1758592923580,71.6655,217.15,217.07,123.17]
[1758592923782,11.3916,217.11,217.03,7.73]
[1758592924082,11.3916,217.11,217.04,115.46]
[1758592925376,7.25,217.1,217.02,347.96]
[1758592925678,7.25,217.08,216.98,7.73]
[1758592925871,3.22194984,217.07,216.98,7.73]
[1758592926077,7.25,217.08,216.98,7.73]
[1758592926576,64.4315,217.09,216.92,44.22]
[1758592926577,11.3936,217.01,216.92,44.22]
[1758592927587,6.01399795,217.11,216.93,7.73]
[1758592927588,4.1429,217.05,216.93,7.73]
[1758592927888,7.25,217.07,216.93,7.73]
[1758592928184,348.08,217.14,216.96,7.73]
[1758592928489,7.25,217.12,216.96,7.73]
[1758592928677,7.25,217.12,217.0,7.73]
[1758592928881,7.25,217.12,217.02,7.73]
[1758592929084,7.25,217.17,217.02,7.73]
[1758592929285,4.1409,217.15,217.02,7.73]
[1758592930184,4.1409,217.15,217.03,7.73]
[1758592930782,4.1413,217.13,217.03,7.73]
[1758592931085,7.25,217.12,217.01,103.4]
[1758592931684,7.25,217.12,217.02,7.73]
[1758592932284,7.25,217.16,217.03,7.73]
[1758592932490,3.21307206,217.15,217.03,7.73]
[1758592932789,7.25,217.16,217.03,7.73]
[1758592932978,4.1411,217.14,217.03,7.73]
[1758592933387,4.1415,217.12,217.03,7.73]
[1758592933583,64.4232,217.12,217.03,7.73]
[1758592933778,71.6792,217.1,216.99,7.73]
[1758592933982,7.25,217.1,216.99,7.73]
[1758592934179,4.1423,217.08,216.99,7.73]
[1758592934589,7.25,217.07,216.95,115.3]
[1758592934782,7.25,217.07,216.96,7.73]
[1758592935585,4.1426,217.06,216.96,7.73]
[1758592935793,7.25,217.07,216.96,7.73]
[1758592936588,11.3925,217.07,216.96,7.73]
[1758592936794,7.25,217.07,216.96,7.73]
[1758592937599,4.1432,217.03,216.96,7.73]
[1758592938796,4.1426,217.06,216.96,7.73]
[1758592939191,7.24,217.09,216.96,7.73]
[1758592939397,7.24,217.09,216.96,11.8744]
[1758592939795,71.6721,217.09,216.96,11.8744]
[1758592939996,4.1423,217.08,216.96,11.8744]
[1758592941002,4.1427,217.06,216.96,123.47]
[1758592941201,7.24,217.09,216.97,7.4]
[1758592941997,4.1424,217.07,216.97,11.5442]
[1758592942602,4.1428,217.05,216.97,7.4]
[1758592943499,4.1433,217.03,216.97,7.4]
[1758592943701,7.24,217.03,216.93,71.04]
[1758592943899,7.24,217.03,216.93,115.66]
[1758592944202,7.24,217.03,216.94,7.4]
[1758592945404,4.1435,217.02,216.94,7.4]
[1758592946004,4.1437,217.0,216.94,7.4]
[1758592946397,4.1437,217.0,216.9,7.4]
[1758592946905,11.3833,217.03,216.91,4.1454]
[1758592947102,11.3833,217.03,216.92,7.4]
[1758592947501,7.24,217.03,216.92,7.4]
[1758592947705,71.6779,217.07,216.93,7.4]
[1758592947904,7.24,217.05,216.94,115.62]
[1758592948203,4.1433,217.02,216.94,115.62]
[1758592948599,64.4468,217.04,216.93,7.4]
[1758592948790,64.4552,217.01,216.85,4.16228372]
[1758592948990,7.24,217.0,216.89,115.64]
[1758592949502,7.24,217.0,216.88,355.44]
[1758592949503,4.1445,216.96,216.88,471.1]
[1758592949898,4.1445,216.96,216.88,355.44]
[1758592950103,4.1449,216.94,216.88,7.4]
[1758592952405,4.1452,216.92,216.84,7.19]
[1758592955006,4.1457,216.9,216.84,7.19]
[1758592955197,7.75,216.94,216.84,7.19]
[1758592955703,4.1454,216.91,216.84,7.19]
[1758592957909,11.895,216.94,216.84,7.19]
[1758592958208,11.895,216.94,216.84,11.3367]
[1758592960801,7.75,216.98,216.87,7.19]
[1758592961603,3.22550182,216.97,216.87,7.19]
[1758592961808,4.1446,216.95,216.87,7.19]
[1758592962010,7.75,216.96,216.87,7.19]
[1758592962402,7.75,216.96,216.87,11.3362]
[1758592963205,3.23052588,216.95,216.87,11.3362]
[1758592963405,7.75,216.96,216.87,11.3362]
[1758592963815,11.8938,217.0,216.9,7.19]
[1758592964004,3.23069909,216.99,216.9,7.19]
[1758592964205,3.23069909,216.98,216.9,7.19]
[1758592964415,3.23069909,216.97,216.9,7.19]
[1758592964616,7.75,217.0,216.9,7.19]
[1758592964812,3.23275119,216.99,216.9,7.19]
[1758592965011,3.23275119,216.98,216.9,7.19]
[1758592965214,3.23275119,216.97,216.9,7.19]
[1758592965416,4.1441,216.99,216.91,4.1454]
[1758592966118,4.1435,217.02,216.93,7.19]
[1758592966317,3.23318506,217.01,216.93,7.19]
[1758592966522,4.1435,217.01,216.93,7.19]
[1758592966721,3.23317283,217.0,216.93,7.19]
[1758592966911,3.23317283,216.99,216.93,7.19]
[1758592967119,7.75,217.01,216.93,7.19]
[1758592967318,3.23341858,217.0,216.93,7.19]
[1758592967517,7.75,217.01,216.93,7.19]
[1758592967817,3.23536817,217.0,216.93,7.19]
[1758592968116,7.75,217.01,216.93,7.19]
[1758592968315,3.2357135,217.0,216.93,7.19]
[1758592968516,7.75,217.01,216.93,7.19]
[1758592968711,3.23739567,217.0,216.93,7.19]
[1758592968913,7.75,217.01,216.93,7.19]
[1758592969111,3.23739567,217.0,216.93,7.19]
[1758592969311,3.23815424,216.99,216.93,7.19]
[1758592969522,7.75,217.01,216.93,7.19]
[1758592969723,3.23881262,217.0,216.93,7.19]
[1758592969924,3.23881262,216.99,216.93,7.19]
[1758592970114,7.75,217.01,216.93,7.19]
[1758592970317,3.23881455,217.0,216.93,7.19]
[1758592970519,7.75,217.01,216.93,7.19]
[1758592970520,3.23881455,216.99,216.93,7.19]
[1758592970719,7.75,217.01,216.93,7.19]
[1758592970924,4.1442,216.98,216.89,7.19]
[1758592971120,4.1442,216.98,216.9,115.46]
[1758592971318,7.75,217.01,216.91,7.19]
[1758592971523,3.23997849,217.0,216.91,7.19]
[1758592971724,7.75,217.01,216.91,7.19]
[1758592971924,3.23997849,217.0,216.91,7.19]
[1758592972121,7.75,217.01,216.91,7.19]
[1758592972327,3.23997849,217.0,216.91,7.19]
[1758592972523,4.1439,216.99,216.91,11.3354]
[1758592972828,64.4701,216.96,216.86,7.19]
[1758592973132,15.13391877,216.95,216.86,7.19]
[1758592973326,11.8948,216.95,216.86,7.19]
[1758592973928,7.75,216.95,216.86,7.19]
[1758592974427,4.1437,217.0,216.88,7.19]
[1758592974830,3.25147709,216.99,216.88,7.19]
[1758592975029,11.8933,217.02,216.92,7.19]
[1758592975335,3.25196426,217.01,216.92,49.41]
[1758592975526,3.25196426,217.0,216.92,49.41]
[1758592975722,11.8933,217.02,216.92,49.41]
[1758592975925,3.25383394,217.01,216.92,49.41]
[1758592976135,3.25383394,217.0,216.92,49.41]
[1758592976328,11.8933,217.02,216.92,49.41]
[1758592976529,3.25449765,217.01,216.93,4.145]
[1758592976836,11.8933,217.02,216.94,7.19]
[1758592977038,3.25456376,217.01,216.94,7.19]
[1758592977329,11.8933,217.02,216.94,7.19]
[1758592977835,7.75,217.02,216.95,4.1446]
[1758592978728,7.75,217.07,216.97,7.19]
[1758592978929,3.25801834,217.06,216.97,7.19]
[1758592979235,7.75,217.07,216.97,7.19]
[1758592980034,7.75,217.07,216.98,115.34]
[1758592981237,7.75,217.07,216.99,4.1439]
[1758592981437,7.75,217.07,217.0,7.32]
[1758592981835,11.1418,217.11,217.01,4.1435]
[1758592982147,3.25872214,217.1,217.02,7.32]
[1758592982332,3.25872214,217.09,217.02,7.32]
[1758592982635,7.0,217.11,217.02,7.32]
[1758592982836,3.25757237,217.1,217.02,7.32]
[1758592983036,3.25757237,217.09,217.02,7.32]
[1758592983236,7.0,217.11,217.02,7.32]
[1758592983537,3.25680556,217.1,217.02,7.32]
[1758592983728,3.25680556,217.09,217.02,7.32]
[1758592983928,7.0,217.11,217.02,7.32]
[1758592984138,3.25699608,217.1,217.02,7.32]
[1758592984333,7.0,217.11,217.02,7.32]
[1758592985337,3.25564834,217.1,217.02,7.32]
[1758592985531,7.0,217.11,217.02,7.32]
[1758592985733,3.25568373,217.1,217.02,7.32]
[1758592985933,7.0,217.11,217.02,7.32]
[1758592986135,3.25568373,217.1,217.02,7.32]
[1758592986436,7.0,217.11,217.02,7.32]
[1758592986639,7.0,217.11,216.97,4.1441]
[1758592986640,7.0,217.09,216.93,7.32]
[1758592986838,7.0,217.07,216.94,58.18]
[1758592987038,7.0,217.07,216.97,7.32]
[1758592987434,7.0,217.07,216.98,107.8]
[1758592987642,7.0,217.15,216.99,7.32]
[1758592987836,3.25527763,217.14,216.99,7.32]
[1758592988038,3.25527763,217.13,216.99,7.32]
[1758592988238,10.25527763,217.12,216.99,7.32]
[1758592988545,4.1418,217.1,217.0,4.1437]
[1758592989447,7.0,217.19,217.03,7.32]
[1758592989633,3.25349706,217.18,217.05,7.32]
[1758592989838,11.1407,217.16,217.07,7.32]
[1758592991242,71.4168,217.14,217.02,7.32]
[1758592991547,7.0,217.12,217.02,7.32]
[1758592991750,3.25113489,217.11,217.02,7.32]
[1758592991946,4.1418,217.1,217.02,7.32]
[1758592992444,4.1422,217.08,216.97,4.1443]
[1758592992645,7.0,217.09,216.97,7.32]
[1758592992843,7.0,217.07,216.97,7.32]
[1758592995450,4.1427,217.06,216.97,7.32]
[1758592995649,7.0,217.07,216.97,7.32]
[1758592996851,4.1429,217.04,216.97,7.32]
[1758592997344,7.15,217.03,216.92,7.15]
[1758592997543,71.5997,217.03,216.92,7.15]
[1758592998453,3.24408294,217.02,216.92,7.15]
[1758592998648,4.1438,217.0,216.92,7.15]
[1758592998843,7.15,217.01,216.92,7.15]
[1758592999149,7.15,217.01,216.9,348.4]
[1758592999841,4.1441,216.98,216.9,348.4]
[1758593000238,7.15,217.01,216.91,7.15]
[1758593001355,4.1442,216.98,216.91,7.15]
[1758593001553,7.15,216.97,216.86,7.15]
[1758593002356,7.15,216.93,216.82,7.15]
[1758593002656,7.15,216.93,216.83,115.12]
[1758593002848,7.15,216.93,216.82,7.15]
[1758593003159,7.15,216.93,216.82,122.25]
[1758593003655,7.15,216.93,216.82,7.15]
[1758593006458,7.15,216.93,216.83,4.1469]
[1758593006754,7.15,216.99,216.85,7.15]
[1758593006952,7.15,217.03,216.92,4.1452]
[1758593007157,3.24663852,217.02,216.92,11.2952]
[1758593007358,7.15,217.03,216.92,11.2952]
[1758593008054,7.15,217.03,216.95,7.15]
[1758593008846,7.15,217.09,216.97,7.15]
[1758593009049,3.24812903,217.08,216.97,7.15]
[1758593009249,3.24812903,217.07,216.97,7.15]
[1758593009458,7.15,217.05,216.94,91.82]
[1758593010160,3.24893424,217.04,216.94,95.9648]
[1758593010348,7.15,217.05,216.94,98.97]